[Event "110th Anniversary WIM 2020"]
[Site "Hilleroed"]
[Date "2020.02.11"]
[Round "5.5"]
[White "Kejzar, Petra"]
[Black "Baliuniene, Margarita"]
[Result "1-0"]
[ECO "A03"]
[WhiteElo "2072"]
[BlackElo "1982"]
[Annotator "NA RC"]
[PlyCount "62"]
[EventDate "2020.02.08"]
[EventType "tourn"]
[EventCountry "DEN"]
[SourceTitle "playchess.com"]
[Source "ChessBase"]
[SourceQuality "1"]
[TimeControl "40/5400+30:1800+30"]

{[%evp 8,62,-16,32767,6,7,8,-14,38,12,40,-25,19,10,0,9,5,-49,-26,-58,0,0,0,0,67,54,77,-21,-27,-88,-66,-175,-235,-193,-124,-115,-102,-291,-310,-275,-309,-371,-452,-458,-349,-425,2019,29985,1935,29986,29989,29988,29997,29998,29998,29999,29999]} 1. b3 {[%emt 0:00:00]} d5 {[%emt 0:00:00]} 2. Bb2 {[%emt 0:00:00]} c5 {[%emt 0:00:00]} 3. e3 {[%emt 0:00:03]} e6 {[%emt 0:00:20]} 4. f4 {[%emt 0:00:27]} Nf6 {[%emt 0:00:38]} 5. Nf3 {[%emt 0:00:18]} a6 {[%emt 0:00:55]} 6. Be2 {[%emt 0:00:20]} Nc6 {[%emt 0:00:26]} 7. Ne5 {[%emt 0:12:11] A03: Bird's Opening with 1...d5.} Be7 {[%emt 0:09:06]} 8. O-O {[%emt 0:02:13]} O-O {[%emt 0:00:25]} 9. d3 {[%emt 0:01:12]} (9. Nxc6 $14 bxc6 10. Nc3) 9... Qc7 {[%emt 0:03:12]} 10. Nd2 {[%emt 0:05:19]} b5 {[%emt 0:02:58]} 11. Qe1 {[%emt 0:02:06]} Bb7 {[%emt 0:02:12] [#]} 12. Rf3 $146 {[%emt 0:04:00]} (12. Qg3 $11) ({Predecessor:} 12. Ndf3 Rfd8 13. Nxf7 Kxf7 14. Ng5+ Kg8 15. Nxe6 Qd7 16. Nxd8 Rxd8 17. Bf3 Rf8 18. Qg3 {1-0 (41) Gosciniak,M (2070)-Polak,S (1371) Szklarska Poreba 2017}) 12... Nb4 {[%emt 0:08:32]} 13. Bd1 {[%emt 0:02:15] [#]} c4 $1 {[%emt 0:00:43]} 14. Bd4 $1 {[%emt 0:04:34]} cxd3 {[%emt 0:04:48]} 15. cxd3 {[%emt 0:00:54]} Rac8 {[%emt 0:00:45]} (15... Nd7 $11) 16. Rh3 {[%emt 0:03:00]} Nc6 {[%emt 0:21:40]} 17. Rc1 {[%emt 0:03:09]} ({White should try} 17. Nxc6 $1 $14 Bxc6 18. Qh4) 17... Qa5 {[%emt 0:01:25]} 18. b4 {[%emt 0:23:41]} (18. Nxc6 $11 Rxc6 19. Ra1) 18... Qxb4 {[%emt 0:06:41]} ({Wrong is} 18... Bxb4 $2 19. Nxc6 Rxc6 {[#]} 20. Bxf6 $3 $18 {[%mdl 512]}) 19. Bc3 {[%emt 0:02:31]} (19. Nxc6 $15 Rxc6 20. Rb1) 19... Qa3 $1 {[%emt 0:01:19]} 20. Bb3 {[%emt 0:07:57] [#]} Nxe5 {[%emt 0:07:17]} ({Black should try} 20... d4 $1 $19 {[%mdl 512]} 21. Nxc6 (21. Bxd4 Nxd4) 21... Rxc6 {[%mdl 64] Pin}) 21. fxe5 {[%emt 0:00:10]} Nd7 {[%emt 0:00:14]} 22. Qd1 $2 {[%emt 0:06:09]} (22. Nb1 $17 Qc5 23. d4) 22... b4 {[%emt 0:09:27]} 23. Nb1 {[%emt 0:00:20] [#]} Qa5 $1 {[%emt 0:00:09]} 24. Qh5 {[%emt 0:00:23]} h6 {[%emt 0:00:30]} 25. Rg3 {[%emt 0:02:49]} Kh7 {[%emt 0:02:50]} ({Stronger than} 25... bxc3 26. Qxh6 Bg5 27. Qxg5 g6 28. Qh6 Qc5 29. Rh3 Qxe3+ 30. Rxe3 Rfd8 31. Rh3 f5 32. Qh8+ Kf7 33. Rh7#) 26. d4 {[%emt 0:01:49]} g6 $4 {[%emt 0:00:59] [#]} (26... bxc3 $19 27. Bc2+ Kh8) 27. Bc2 $1 {[%emt 0:00:13]} Rg8 {[%emt 0:00:27] [#]} 28. Rf1 $1 {[%emt 0:00:42]} ({Not} 28. Rh3 Bf8 $16) 28... Bf6 {[%emt 0:06:17]} 29. Rh3 {[%emt 0:01:57]} Bg5 {[%emt 0:05:23]} 30. Qxg5 {[%emt 0:00:12]} h5 {[%emt 0:01:02]} 31. Rxh5+ {[%emt 0:14:36]} Kg7 {[%emt 0:04:50]} 1-0

[Event "110th Anniversary WIM 2020"]
[Site "Hilleroed"]
[Date "2020.02.14"]
[Round "8.3"]
[White "Stanford, Sheila Barth"]
[Black "Berke, Ana"]
[Result "1/2-1/2"]
[ECO "B13"]
[WhiteElo "2145"]
[BlackElo "2152"]
[Annotator "NA RC"]
[PlyCount "99"]
[EventDate "2020.02.08"]
[EventType "tourn"]
[EventCountry "DEN"]
[SourceTitle "playchess.com"]
[Source "ChessBase"]
[SourceQuality "1"]
[TimeControl "40/5400+30:1800+30"]

{[%evp 8,83,0,-13,0,6,10,14,15,0,24,20,19,13,32,22,187,172,184,198,191,195,182,144,169,133,167,155,225,32767,277,339,346,390,356,404,32767,644,605,777,918,32767,32767,32767,32767,32767,32767,32767,631,32767,32767,32767,32767,32767,32767,32767,32767,32767,32767,184,32767,32767,229,268,305,227,32767,32767,254,279,270,154,171,136,136,135,122,154]} 1. d4 {[%emt 0:00:00]} d5 {[%emt 0:00:00]} 2. Nc3 {[%emt 0:00:00]} Nf6 {[%emt 0:00:00]} 3. Bf4 {[%emt 0:00:00]} c5 {[%emt 0:00:11]} 4. e3 {[%emt 0:00:31]} cxd4 {[%emt 0:00:11]} 5. exd4 {[%emt 0:00:20]} a6 {[%emt 0:00:06]} 6. Nf3 {[%emt 0:02:32] B13: Caro-Kann: Exchange Variation and Panov-Botvinnik Attack.} Bg4 {[%emt 0:00:53] is more promising than 6...Nc6.} 7. h3 {[%emt 0:00:40]} Bxf3 {[%emt 0:01:08]} 8. Qxf3 {[%emt 0:00:38]} Nc6 {[%emt 0:00:11]} 9. O-O-O {[%emt 0:07:08]} e6 {[%emt 0:02:38]} 10. g4 {[%emt 0:01:40]} b5 {[%emt 0:04:44]} 11. g5 {[%emt 0:03:01] [#]} b4 $146 {[%emt 0:03:48]} ({Better is} 11... Ng8 $14) ({Predecessor:} 11... Nd7 12. h4 Be7 13. Bh3 Nb6 14. Qg3 Nc4 15. Kb1 Qa5 16. Ne2 Rc8 17. Nc1 Qb6 {0-1 (39) Korley,K (2430)-Flaquer,L (2268) Arlington 2015}) 12. gxf6 {[%emt 0:04:30]} bxc3 {[%emt 0:04:56]} 13. Qxc3 {[%emt 0:06:18]} Qb6 {[%emt 0:02:23] [#]} 14. fxg7 $1 {[%emt 0:08:05]} Bxg7 {[%emt 0:00:10]} 15. Bd6 {[%emt 0:01:09]} Bf8 {[%emt 0:11:53]} 16. Bc5 {[%emt 0:02:40]} Qc7 {[%emt 0:02:42]} 17. Rg1 {[%emt 0:01:33]} Nd8 {[%emt 0:11:01]} 18. Rg3 {[%emt 0:21:03]} Qf4+ {[%emt 0:04:35]} (18... Nb7 $16 {was necessary.} 19. Re1 Bd6) 19. Kb1 {[%emt 0:00:33]} Qxf2 {[%emt 0:01:27]} 20. Bxf8 {[%emt 0:02:28]} Rxf8 {[%emt 0:02:42]} 21. Qa3 {[%emt 0:02:24]} Rc8 {[%emt 0:06:13]} 22. Rg2 {[%emt 0:15:18]} Qf4 {[%emt 0:01:57]} 23. Bxa6 {[%emt 0:00:15]} Rb8 {[%emt 0:02:24]} 24. Rg3 {[%emt 0:05:02]} Qc7 {[%emt 0:01:10]} 25. Rc3 {[%emt 0:00:24]} Qd7 {[%emt 0:03:04]} 26. Bd3 {[%emt 0:01:31]} f5 {[%emt 0:01:28]} 27. Be2 {[%emt 0:00:25]} Nf7 {[%emt 0:01:56]} 28. Rg1 {[%emt 0:00:22]} Qd6 {[%emt 0:03:30]} 29. Qxd6 {[%emt 0:01:44]} Nxd6 {[%emt 0:01:11]} 30. Rc7 {[%emt 0:01:22]} Rb7 {[%emt 0:01:43]} 31. Rxb7 {[%emt 0:00:39]} Nxb7 {[%emt 0:00:04]} 32. Rg7 {[%emt 0:01:36]} Nd6 {[%emt 0:01:01]} 33. c3 {[%emt 0:06:18]} ({Don't do} 33. Rxh7 $6 f4) 33... f4 {[%emt 0:01:50]} 34. Bf3 {[%emt 0:00:02]} Kd8 {[%emt 0:05:33]} 35. Kc2 {[%emt 0:01:18]} ({Not} 35. Rxh7 Ne4 $11) 35... h6 {[%emt 0:05:02]} 36. Rg6 {[%emt 0:02:09]} Ne4 {[%emt 0:01:56]} 37. h4 {[%emt 0:01:38]} Ke7 {[%emt 0:01:32]} 38. Rxh6 {[%emt 0:00:43]} Rg8 {[%emt 0:00:37]} 39. Kd3 {[%emt 0:00:43]} Rg3 {[%emt 0:01:14]} 40. Ke2 {[%emt 0:00:22]} Rg1 {[%emt 0:02:54]} 41. c4 $16 {[%emt 0:11:09]} Rb1 {[%emt 0:02:40] [#]} 42. cxd5 $1 {[%emt 0:00:58]} Rxb2+ {[%emt 0:10:41]} 43. Kd3 {[%emt 0:01:41]} Nf2+ {[%emt 0:02:07]} 44. Kc4 {[%emt 0:03:53]} exd5+ {[%emt 0:04:15]} 45. Bxd5 {[%emt 0:01:57]} Rxa2 {[%emt 0:01:42]} 46. Rh7+ {[%emt 0:00:42]} Kd6 {[%emt 0:02:40]} 47. Rh6+ {[%emt 0:00:07]} Ke7 {[%emt 0:00:26]} 48. Rh7+ {[%emt 0:10:07]} Kd6 {[%emt 0:00:05]} 49. Rh6+ {[%emt 0:00:09]} Ke7 {[%emt 0:00:06]} 50. Rh7+ {[%emt 0:05:13]} 1/2-1/2

[Event "110th Anniversary WIM 2020"]
[Site "Hilleroed"]
[Date "2020.02.15"]
[Round "9.1"]
[White "Kakulidis, Ellen"]
[Black "Zaritovskaja, Margarita"]
[Result "0-1"]
[ECO "E05"]
[WhiteElo "2052"]
[BlackElo "2022"]
[Annotator "ChessBase"]
[PlyCount "82"]
[EventDate "2020.02.08"]
[EventType "tourn"]
[EventCountry "DEN"]
[SourceTitle "playchess.com"]
[Source "ChessBase"]
[SourceQuality "1"]
[TimeControl "40/5400+30:1800+30"]

1. d4 {[%emt 0:00:00]} Nf6 {[%emt 0:00:00]} 2. g3 {[%emt 0:00:00]} d5 {[%emt 0:00:04]} 3. Nf3 {[%emt 0:00:13]} e6 {[%emt 0:00:26]} 4. Bg2 {[%emt 0:00:17]} Be7 {[%emt 0:00:16]} 5. c4 {[%emt 0:00:48]} O-O {[%emt 0:00:35]} 6. O-O {[%emt 0:00:08]} dxc4 {[%emt 0:00:14]} 7. Ne5 {[%emt 0:10:35]} Nc6 {[%emt 0:02:16]} 8. Nxc6 {[%emt 0:09:29]} bxc6 {[%emt 0:00:08]} 9. Nc3 {[%emt 0:12:50]} Bb7 {[%emt 0:05:32]} 10. Qa4 {[%emt 0:01:02]} Qxd4 {[%emt 0:06:00]} 11. Be3 {[%emt 0:01:55]} Qe5 {[%emt 0:02:56]} 12. Qxc4 {[%emt 0:03:42]} Nd5 {[%emt 0:04:37]} 13. Bd4 {[%emt 0:05:12]} Qd6 {[%emt 0:07:28]} 14. Ne4 {[%emt 0:02:32]} Qd8 {[%emt 0:08:57]} 15. Bc5 {[%emt 0:04:31]} Bd6 {[%emt 0:03:00]} 16. Rfd1 {[%emt 0:05:42]} Qe7 {[%emt 0:01:19]} 17. Rac1 {[%emt 0:08:31]} Rfd8 {[%emt 0:08:57]} 18. Bd4 {[%emt 0:11:08]} Rd7 {[%emt 0:15:36]} 19. Nc5 {[%emt 0:00:48]} Bxc5 {[%emt 0:00:06]} 20. Bxc5 {[%emt 0:00:13]} Qd8 {[%emt 0:01:09]} 21. Qc2 {[%emt 0:02:41]} Qe8 {[%emt 0:04:35]} 22. e3 {[%emt 0:02:48]} a5 {[%emt 0:04:34]} 23. Rd4 {[%emt 0:03:23]} Rad8 {[%emt 0:02:31]} 24. Rcd1 {[%emt 0:00:38]} h6 {[%emt 0:04:50]} 25. Qa4 {[%emt 0:01:06]} e5 {[%emt 0:01:32]} 26. R4d2 {[%emt 0:03:08]} Qe6 {[%emt 0:00:40]} 27. Qc2 {[%emt 0:02:20]} Nb4 {[%emt 0:03:50]} 28. Bxb4 {[%emt 0:01:57]} axb4 {[%emt 0:00:03]} 29. Rxd7 {[%emt 0:00:55]} Rxd7 {[%emt 0:00:02]} 30. Rc1 {[%emt 0:00:25]} Qxa2 {[%emt 0:01:53]} 31. Bf1 {[%emt 0:04:40]} Qd5 {[%emt 0:01:26]} 32. Qf5 {[%emt 0:01:00]} c5 {[%emt 0:01:54]} 33. e4 {[%emt 0:00:04]} Qxe4 {[%emt 0:00:12]} 34. Qxe4 {[%emt 0:00:03]} Bxe4 {[%emt 0:00:03]} 35. b3 {[%emt 0:02:00]} Kf8 {[%emt 0:01:50]} 36. Bb5 {[%emt 0:00:40]} c6 {[%emt 0:02:27]} 37. Ba6 {[%emt 0:00:20]} Bf3 {[%emt 0:01:05]} 38. Kf1 {[%emt 0:00:40]} Rd1+ {[%emt 0:00:49]} 39. Rxd1 {[%emt 0:00:26]} Bxd1 {[%emt 0:00:02]} 40. Bc4 {[%emt 0:00:11]} Ke7 {[%emt 0:00:49]} 41. Kg2 {[%emt 0:30:30]} Bg4 {[%emt 0:34:27]} 0-1

[Event "110th Anniversary WIM 2020"]
[Site "Hilleroed"]
[Date "2020.02.15"]
[Round "9.2"]
[White "Baliuniene, Margarita"]
[Black "Nastase, Andreea-Cristina"]
[Result "1-0"]
[ECO "D48"]
[WhiteElo "1982"]
[BlackElo "2090"]
[Annotator "NA"]
[PlyCount "71"]
[EventDate "2020.02.08"]
[EventType "tourn"]
[EventCountry "DEN"]
[SourceTitle "playchess.com"]
[Source "ChessBase"]
[SourceQuality "1"]
[TimeControl "40/5400+30:1800+30"]

{[%evp 8,66,34,13,13,19,10,10,11,0,-1,-6,-13,-31,-19,-26,-17,-16,-12,-35,-23,-25,-31,-35,-33,-29,-31,-32,0,-39,-27,-136,-45,-127,-65,-86,-74,-92,-125,-397,-418,-560,-12,-14,77,63,79,82,87,126,146,157,225,32767,306,297,32767,395,32767,457,524]} 1. d4 {[%emt 0:00:00]} d5 {[%emt 0:00:00]} 2. c4 {[%emt 0:00:00]} c6 {[%emt 0:00:00]} 3. e3 {[%emt 0:00:00]} Nf6 {[%emt 0:00:00]} 4. Nc3 {[%emt 0:00:37]} e6 {[%emt 0:00:31]} 5. Nf3 {[%emt 0:00:20]} Nbd7 {[%emt 0:00:09]} 6. Bd3 {[%emt 0:00:35]} dxc4 {[%emt 0:00:54]} 7. Bxc4 {[%emt 0:00:06]} b5 {[%emt 0:00:19]} 8. Bd3 {[%emt 0:00:04]} a6 {[%emt 0:00:04]} 9. O-O {[%emt 0:00:21]} c5 {[%emt 0:00:53]} 10. b3 {[%emt 0:00:50]} Bb7 {[%emt 0:01:57]} 11. Bb2 {[%emt 0:00:45]} Bd6 {[%emt 0:02:05] D48: Semi-Slav: Meran System: 7...b5 8 Bd3 a6.} 12. Rc1 {[%emt 0:03:12]} O-O {[%emt 0:00:55]} 13. Qe2 {[%emt 0:04:10]} cxd4 {[%emt 0:19:09]} 14. exd4 {[%emt 0:02:16] [#]} Nb6 $146 {[%emt 0:05:06]} ({Predecessor:} 14... Ra7 15. Ng5 Bf4 16. Nxe6 fxe6 17. Qxe6+ Kh8 18. Rce1 Qc7 19. Ba3 Qxc3 20. Bxf8 Nxf8 {0-1 (27) Hansen,O-Adnoy,H (2185) Oslo 2001}) 15. Ne5 {[%emt 0:04:48]} Nbd5 {[%emt 0:02:47]} 16. Nxd5 {[%emt 0:01:24]} Nxd5 {[%emt 0:01:32]} 17. g3 {[%emt 0:07:42]} f5 {[%emt 0:11:10]} 18. Rce1 {[%emt 0:08:17]} Rf6 {[%emt 0:07:57]} 19. Bc1 {[%emt 0:00:33]} (19. f3 $1 $11) 19... h6 {[%emt 0:00:09]} 20. f4 {[%emt 0:04:23]} ({Better is} 20. Bd2 $15) 20... Nb4 {[%emt 0:00:50]} ({Black should play} 20... Nc3 $17 21. Qe3 Nxa2) 21. Bb1 {[%emt 0:00:44]} Bxe5 {[%emt 0:04:24]} 22. dxe5 {[%emt 0:05:17] [#]} Rf7 $1 {[%emt 0:04:44]} 23. Qd2 $2 {[%emt 0:05:47] [#]} (23. Rd1 $17 Qb6+ 24. Be3) 23... Qb6+ $1 {[%emt 0:00:31]} 24. Rf2 {[%emt 0:01:41] [#]} a5 $2 {[%emt 0:04:38]} (24... Qc6 $1 $19 {[%csl Gb7][%cal Rc6h1]} 25. Kf1 Rd7 26. Qxb4 a5) 25. Qd6 {[%emt 0:02:41]} Qxd6 {[%emt 0:00:45]} (25... Qd8 $11) 26. exd6 {[%emt 0:00:05]} Bd5 {[%emt 0:00:03]} 27. Bb2 {[%emt 0:05:26]} Rd8 {[%emt 0:07:40] [#]} 28. Be5 $1 {[%emt 0:00:31]} Rb7 {[%emt 0:02:42]} 29. Rc1 {[%emt 0:01:41]} Nc6 {[%emt 0:01:02]} (29... g6 $16 30. Rd2 Kf7) 30. Rd2 {[%emt 0:04:32]} Na7 {[%emt 0:04:07] [#]} (30... Rb6 {is a better defense.} 31. Bxf5 a4 32. bxa4 bxa4) 31. Bxf5 $1 {[%emt 0:02:11]} Kf7 {[%emt 0:05:27]} 32. Bh3 {[%emt 0:02:14]} g5 {[%emt 0:02:00]} 33. Kf2 {[%emt 0:07:02]} b4 $18 {[%emt 0:01:13]} 34. Bf1 {[%emt 0:09:19]} Nc8 {[%emt 0:04:49]} 35. Ba6 {[%emt 0:01:08]} Rb8 {[%emt 0:00:04]} 36. d7 {[%emt 0:00:37]} 1-0

[Event "110th Anniversary WIM 2020"]
[Site "Hilleroed"]
[Date "2020.02.15"]
[Round "9.3"]
[White "Kejzar, Petra"]
[Black "Stanford, Sheila Barth"]
[Result "0-1"]
[ECO "D00"]
[WhiteElo "2072"]
[BlackElo "2145"]
[Annotator "ChessBase"]
[PlyCount "78"]
[EventDate "2020.02.08"]
[EventType "tourn"]
[EventCountry "DEN"]
[SourceTitle "playchess.com"]
[Source "ChessBase"]
[SourceQuality "1"]
[TimeControl "40/5400+30:1800+30"]

1. d4 {[%emt 0:00:00]} Nf6 {[%emt 0:00:23]} 2. Nc3 {[%emt 0:00:00]} d5 {[%emt 0:00:30]} 3. Bf4 {[%emt 0:00:00]} Bf5 {[%emt 0:00:59]} 4. e3 {[%emt 0:00:00]} c6 {[%emt 0:00:39]} 5. f3 {[%emt 0:00:18]} h5 {[%emt 0:02:10]} 6. Bd3 {[%emt 0:03:04]} Bxd3 {[%emt 0:04:50]} 7. Qxd3 {[%emt 0:00:08]} e6 {[%emt 0:00:13]} 8. e4 {[%emt 0:02:49]} Be7 {[%emt 0:09:12]} 9. Nge2 {[%emt 0:01:21]} dxe4 {[%emt 0:02:48]} 10. fxe4 {[%emt 0:00:37]} Nbd7 {[%emt 0:00:07]} 11. O-O-O {[%emt 0:03:13]} Qa5 {[%emt 0:05:35]} 12. Kb1 {[%emt 0:03:19]} O-O-O {[%emt 0:08:09]} 13. h3 {[%emt 0:04:56]} h4 {[%emt 0:08:27]} 14. Bh2 {[%emt 0:03:26]} e5 {[%emt 0:06:54]} 15. Qf3 {[%emt 0:03:42]} Bd6 {[%emt 0:05:33]} 16. Rhf1 {[%emt 0:13:00]} Rde8 {[%emt 0:02:41]} 17. d5 {[%emt 0:05:11]} c5 {[%emt 0:02:44]} 18. Qd3 {[%emt 0:00:10]} a6 {[%emt 0:01:08]} 19. Ng1 {[%emt 0:04:10]} Rh6 {[%emt 0:07:58]} 20. Nf3 {[%emt 0:00:41]} Qc7 {[%emt 0:01:46]} 21. Rde1 {[%emt 0:03:27]} c4 {[%emt 0:07:55]} 22. Qe2 {[%emt 0:00:51]} Bb4 {[%emt 0:02:01]} 23. Bg1 {[%emt 0:07:01]} Nh5 {[%emt 0:02:51]} 24. Bh2 {[%emt 0:11:11]} Rb6 {[%emt 0:04:36]} 25. Ka1 {[%emt 0:01:05]} Bxc3 {[%emt 0:01:19]} 26. bxc3 {[%emt 0:00:04]} Nf4 {[%emt 0:00:40]} 27. Qd2 {[%emt 0:02:06]} f6 {[%emt 0:00:51]} 28. Nxh4 {[%emt 0:01:02]} Rb5 {[%emt 0:01:37]} 29. Rb1 {[%emt 0:02:06]} Nc5 {[%emt 0:01:00]} 30. Rfe1 {[%emt 0:04:23]} Rxb1+ {[%emt 0:02:46]} 31. Kxb1 {[%emt 0:00:35]} Na4 {[%emt 0:00:06]} 32. Ka1 {[%emt 0:04:53]} Qa5 {[%emt 0:00:30]} 33. Rb1 {[%emt 0:04:40]} Nxc3 {[%emt 0:00:35]} 34. Rb2 {[%emt 0:00:07]} Nfe2 {[%emt 0:04:38]} 35. Nf5 {[%emt 0:00:50]} Rd8 {[%emt 0:00:10]} 36. d6 {[%emt 0:01:57]} Qa3 {[%emt 0:02:48]} 37. Ne7+ {[%emt 0:01:19]} Kd7 {[%emt 0:00:02]} 38. Rxb7+ {[%emt 0:01:03]} Ke6 {[%emt 0:00:39]} 39. Rb2 {[%emt 0:00:28]} Rb8 {[%emt 0:00:23]} 0-1

[Event "110th Anniversary WIM 2020"]
[Site "Hilleroed"]
[Date "2020.02.15"]
[Round "9.4"]
[White "Berke, Ana"]
[Black "Miturova, Magdalena"]
[Result "1/2-1/2"]
[ECO "D02"]
[WhiteElo "2152"]
[BlackElo "2185"]
[Annotator "ChessBase"]
[PlyCount "100"]
[EventDate "2020.02.08"]
[EventType "tourn"]
[EventCountry "DEN"]
[SourceTitle "playchess.com"]
[Source "ChessBase"]
[SourceQuality "1"]
[TimeControl "40/5400+30:1800+30"]

1. d4 {[%emt 0:00:00]} Nf6 {[%emt 0:00:00]} 2. Bf4 {[%emt 0:00:00]} e6 {[%emt 0:00:00]} 3. e3 {[%emt 0:00:00]} d5 {[%emt 0:00:08]} 4. c3 {[%emt 0:00:00]} Bd6 {[%emt 0:00:38]} 5. Bg3 {[%emt 0:00:01]} O-O {[%emt 0:01:44]} 6. Nd2 {[%emt 0:00:11]} c5 {[%emt 0:05:06]} 7. Ngf3 {[%emt 0:00:14]} Nc6 {[%emt 0:00:27]} 8. Bd3 {[%emt 0:00:17]} b6 {[%emt 0:01:30]} 9. e4 {[%emt 0:00:44]} Be7 {[%emt 0:01:19]} 10. Ne5 {[%emt 0:09:58]} Bb7 {[%emt 0:27:35]} 11. Nxc6 {[%emt 0:09:15]} Bxc6 {[%emt 0:00:11]} 12. e5 {[%emt 0:00:45]} Ne4 {[%emt 0:00:13]} 13. Qe2 {[%emt 0:05:39]} cxd4 {[%emt 0:02:39]} 14. cxd4 {[%emt 0:02:41]} Bb4 {[%emt 0:06:16]} 15. Bxe4 {[%emt 0:01:42]} dxe4 {[%emt 0:00:29]} 16. a3 {[%emt 0:06:59]} Bxd2+ {[%emt 0:00:58]} 17. Qxd2 {[%emt 0:00:28]} Bb5 {[%emt 0:00:16]} 18. f3 {[%emt 0:18:52]} Qd5 {[%emt 0:08:45]} 19. Qe3 {[%emt 0:02:13]} exf3 {[%emt 0:02:25]} 20. gxf3 {[%emt 0:01:18]} Rac8 {[%emt 0:02:02]} 21. Kd2 {[%emt 0:15:05]} Rc4 {[%emt 0:08:36]} 22. Bf2 {[%emt 0:00:12]} Rfc8 {[%emt 0:02:10]} 23. Rhc1 {[%emt 0:03:45]} Qc6 {[%emt 0:01:07]} 24. Rc3 {[%emt 0:01:26]} Rxc3 {[%emt 0:03:23]} 25. Qxc3 {[%emt 0:01:03]} Qd7 {[%emt 0:01:31]} 26. Qe3 {[%emt 0:00:47]} Ba6 {[%emt 0:07:18]} 27. Rc1 {[%emt 0:01:05]} Qb5 {[%emt 0:04:34]} 28. Rxc8+ {[%emt 0:01:55]} Bxc8 {[%emt 0:00:06]} 29. b3 {[%emt 0:02:20]} Bb7 {[%emt 0:04:34]} 30. Kc2 {[%emt 0:02:49]} Qf1 {[%emt 0:00:46]} 31. Kb2 {[%emt 0:01:28]} Qg2 {[%emt 0:02:50]} 32. h4 {[%emt 0:01:23]} Bxf3 {[%emt 0:01:33]} 33. a4 {[%emt 0:00:13]} h6 {[%emt 0:01:34]} 34. Ka3 {[%emt 0:04:38]} Bd5 {[%emt 0:00:44]} 35. Kb2 {[%emt 0:01:35]} Qf1 {[%emt 0:00:58]} 36. Qe1 {[%emt 0:02:11]} Qd3 {[%emt 0:00:40]} 37. Qe3 {[%emt 0:00:24]} Qd1 {[%emt 0:00:26]} 38. Bg3 {[%emt 0:01:53]} Qh1 {[%emt 0:01:04]} 39. Bf2 {[%emt 0:01:07]} Be4 {[%emt 0:01:52]} 40. Qe1 {[%emt 0:00:10]} Qg2 {[%emt 0:00:19]} 41. Ka3 {[%emt 0:31:38]} Bd5 {[%emt 0:06:31]} 42. Kb2 {[%emt 0:00:00]} a5 {[%emt 0:04:59]} 43. Qe3 {[%emt 0:00:00]} Qf1 {[%emt 0:00:47]} 44. Qe1 {[%emt 0:00:00]} Qd3 {[%emt 0:03:55]} 45. Qe3 {[%emt 0:00:00]} Qd1 {[%emt 0:02:46]} 46. Bg3 {[%emt 0:00:00]} b5 {[%emt 0:10:01]} 47. axb5 {[%emt 0:00:00]} Qf1 {[%emt 0:00:13]} 48. Qc3 {[%emt 0:00:00]} Be4 {[%emt 0:02:28]} 49. b6 {[%emt 0:00:00]} Qb5 {[%emt 0:01:05]} 50. Qc5 {[%emt 0:00:00]} Qd3 {[%emt 0:00:25]} 1/2-1/2

[Event "110th Anniversary WIM 2020"]
[Site "Hilleroed"]
[Date "2020.02.15"]
[Round "9.5"]
[White "Nilssen, Ellen Fredericia"]
[Black "Guindy, Esmat Susanne"]
[Result "1-0"]
[ECO "C01"]
[WhiteElo "2065"]
[BlackElo "2143"]
[Annotator "ChessBase"]
[PlyCount "95"]
[EventDate "2020.02.08"]
[EventType "tourn"]
[EventCountry "DEN"]
[SourceTitle "playchess.com"]
[Source "ChessBase"]
[SourceQuality "1"]
[TimeControl "40/5400+30:1800+30"]

1. e4 {[%emt 0:00:00]} e6 {[%emt 0:00:00]} 2. d4 {[%emt 0:00:00]} d5 {[%emt 0:00:00]} 3. exd5 {[%emt 0:00:00]} exd5 {[%emt 0:00:00]} 4. Nf3 {[%emt 0:00:00]} Bd6 {[%emt 0:01:45]} 5. c4 {[%emt 0:00:08]} c6 {[%emt 0:00:55]} 6. Nc3 {[%emt 0:02:18]} Nf6 {[%emt 0:04:38]} 7. c5 {[%emt 0:00:07]} Bc7 {[%emt 0:00:06]} 8. Bd3 {[%emt 0:00:05]} b6 {[%emt 0:04:21]} 9. cxb6 {[%emt 0:01:07]} axb6 {[%emt 0:00:16]} 10. O-O {[%emt 0:00:09]} O-O {[%emt 0:01:29]} 11. Bg5 {[%emt 0:00:15]} Ba6 {[%emt 0:05:21]} 12. Re1 {[%emt 0:03:01]} Qd6 {[%emt 0:17:37]} 13. Bh4 {[%emt 0:04:27]} Bxd3 {[%emt 0:09:08]} 14. Qxd3 {[%emt 0:02:05]} Ra7 {[%emt 0:01:32]} 15. a3 {[%emt 0:09:01]} h6 {[%emt 0:11:18]} 16. Rac1 {[%emt 0:04:30]} Rc8 {[%emt 0:03:38]} 17. Ne5 {[%emt 0:14:30]} Nfd7 {[%emt 0:04:51]} 18. Qf5 {[%emt 0:07:44]} Rf8 {[%emt 0:07:13]} 19. Bg3 {[%emt 0:02:01]} Nxe5 {[%emt 0:00:09]} 20. Bxe5 {[%emt 0:00:06]} Qd8 {[%emt 0:00:59]} 21. Na2 {[%emt 0:13:05]} Bxe5 {[%emt 0:01:37]} 22. Qxe5 {[%emt 0:00:23]} Rd7 {[%emt 0:03:26]} 23. Nb4 {[%emt 0:03:37]} Rd6 {[%emt 0:01:43]} 24. Qe7 {[%emt 0:07:28]} Qxe7 {[%emt 0:00:28]} 25. Rxe7 {[%emt 0:00:02]} Rc8 {[%emt 0:00:14]} 26. h3 {[%emt 0:07:12]} c5 {[%emt 0:02:52]} 27. Rb7 {[%emt 0:12:17]} Nd7 {[%emt 0:02:30]} 28. Nd3 {[%emt 0:00:14]} Rd8 {[%emt 0:07:07]} 29. Rc7 {[%emt 0:05:02]} c4 {[%emt 0:01:47]} 30. Nb4 {[%emt 0:00:14]} Nf6 {[%emt 0:01:14]} 31. Re1 {[%emt 0:00:07]} R6d7 {[%emt 0:02:18]} 32. Rc6 {[%emt 0:02:01]} Rd6 {[%emt 0:01:34]} 33. Re7 {[%emt 0:00:04]} Rxc6 {[%emt 0:00:37]} 34. Nxc6 {[%emt 0:00:01]} Rd6 {[%emt 0:02:05]} 35. Ne5 {[%emt 0:00:17]} Re6 {[%emt 0:00:11]} 36. Rb7 {[%emt 0:00:52]} Ne4 {[%emt 0:00:28]} 37. Rb8+ {[%emt 0:00:43]} Kh7 {[%emt 0:00:11]} 38. Nxf7 {[%emt 0:00:04]} Nd2 {[%emt 0:01:45]} 39. Rh8+ {[%emt 0:01:46]} Kg6 {[%emt 0:00:04]} 40. Ne5+ {[%emt 0:00:07]} Kg5 {[%emt 0:01:50]} 41. Rg8 {[%emt 0:05:39]} g6 {[%emt 0:00:46]} 42. Rf8 {[%emt 0:07:17]} h5 {[%emt 0:02:34]} 43. Nf7+ {[%emt 0:05:14]} Kf5 {[%emt 0:03:20]} 44. Nd8+ {[%emt 0:00:06]} Rf6 {[%emt 0:00:20]} 45. g4+ {[%emt 0:00:13]} hxg4 {[%emt 0:00:22]} 46. hxg4+ {[%emt 0:00:10]} Kg5 {[%emt 0:00:31]} 47. f4+ {[%emt 0:00:07]} Rxf4 {[%emt 0:00:20]} 48. Ne6+ {[%emt 0:00:06]} 1-0